bitfinex-derivatives/quotes_BTCF0:USTF0_20250922
["timestamp","ask_amount","ask_price","bid_price","bid_amount"]
[1758552198686,0.84763,113040.0,113030.0,0.73101402]
[1758552198992,0.86069,113040.0,113030.0,0.46825402]
[1758552199187,0.86069,113040.0,113030.0,0.46785402]
[1758552199389,0.86069,113040.0,113030.0,0.82865402]
[1758552199587,0.86069,113040.0,113030.0,0.82905402]
[1758552199891,0.84763,113040.0,113030.0,0.84181402]
[1758552203493,0.86069,113040.0,113030.0,0.84181402]
[1758552204693,0.86069,113040.0,113030.0,1.00103466]
[1758552205102,0.86069,113040.0,113030.0,0.74292653]
[1758552205595,0.86069,113040.0,113030.0,0.74252653]
[1758552205894,0.86069,113040.0,113030.0,1.01499466]
[1758552207696,0.03509,113040.0,113030.0,1.01499466]
[1758552207897,0.02203,113040.0,113030.0,1.01499466]
[1758552208196,0.0001,113040.0,113030.0,1.34499466]
[1758552208597,0.5049,113040.0,113030.0,1.34499466]
[1758552208798,0.0001,113040.0,113030.0,1.34499466]
[1758552209000,0.82514,113040.0,113030.0,1.34499466]
[1758552209996,0.82506,113040.0,113030.0,1.34499466]
[1758552210901,0.8387,113040.0,113030.0,1.07292653]
[1758552211102,0.86043,113040.0,113030.0,0.90243442]
[1758552211301,0.86043,113040.0,113030.0,0.82243442]
[1758552211602,0.86043,113040.0,113030.0,0.74252653]
[1758552211797,0.86043,113040.0,113030.0,0.74292653]
[1758552212199,0.86043,113040.0,113030.0,0.65412813]
[1758552212396,0.86043,113040.0,113030.0,0.74292653]
[1758552213302,0.86043,113040.0,113030.0,0.74252653]
[1758552213503,0.86043,113040.0,113030.0,0.74292653]
[1758552216202,0.03547,113040.0,113030.0,0.74292653]
[1758552216408,0.86019,113040.0,113030.0,1.01499466]
[1758552216616,0.86015,113040.0,113030.0,1.01499466]
[1758552216804,0.03547,113040.0,113030.0,1.01499466]
[1758552217000,0.86011,113040.0,113030.0,1.01499466]
[1758552217501,0.03547,113040.0,113030.0,1.01499466]
[1758552217702,0.76903,113040.0,113030.0,1.01499466]
[1758552217999,0.86007,113040.0,113030.0,1.01499466]
[1758552218200,0.03547,113040.0,113030.0,1.01499466]
[1758552218399,0.76895,113040.0,113030.0,1.01499466]
[1758552218802,0.84643,113040.0,113030.0,1.01499466]
[1758552218999,0.84643,113040.0,113030.0,0.4987784]
[1758552219196,0.02183,113040.0,113030.0,1.01499466]
[1758552219404,0.0001,113040.0,113030.0,1.32499466]
[1758552219709,0.57198,113040.0,113030.0,1.57499466]
[1758552221205,0.57198,113040.0,113030.0,1.32499466]
[1758552221406,0.60735,113040.0,113030.0,0.41212653]
[1758552221811,0.60735,113040.0,113030.0,0.41172653]
[1758552222006,0.60735,113040.0,113030.0,0.41212653]
[1758552222403,0.60735,113040.0,113030.0,0.29372813]
[1758552222806,0.60735,113040.0,113030.0,0.29332813]
[1758552223108,0.60735,113040.0,113030.0,0.29372813]
[1758552223305,0.60735,113040.0,113030.0,0.20352629]
[1758552223502,0.60735,113040.0,113030.0,0.46163442]
[1758552223707,0.60735,113040.0,113030.0,0.38212653]
[1758552224701,0.60735,113040.0,113030.0,0.29372813]
[1758552224903,0.96815,113040.0,113030.0,0.29372813]
[1758552225098,0.96815,113040.0,113030.0,0.38212653]
[1758552225306,0.96815,113040.0,113030.0,0.38172653]
[1758552225505,0.96815,113040.0,113030.0,0.38212653]
[1758552225914,0.60735,113040.0,113030.0,0.38212653]
[1758552227012,0.60735,113040.0,113030.0,0.03562]
[1758552227208,1.47625813,113040.0,113030.0,0.014]
[1758552227615,1.47625813,113040.0,113030.0,0.27250813]
[1758552227811,1.47625813,113040.0,113030.0,0.27210813]
[1758552228011,1.47625813,113040.0,113030.0,0.27250813]
[1758552228304,1.47625813,113040.0,113030.0,0.0144]
[1758552228512,1.47625813,113040.0,113030.0,0.27250813]
[1758552229108,1.47625813,113040.0,113030.0,0.0144]
[1758552229314,1.47625813,113040.0,113030.0,0.27250813]
[1758552232721,1.47625813,113040.0,113030.0,0.36090653]
[1758552232922,1.47625813,113040.0,113030.0,0.38289653]
[1758552233724,1.47625813,113040.0,113030.0,0.29449813]
[1758552234826,1.47625813,113040.0,113030.0,0.38289653]
[1758552236328,1.47625813,113040.0,113030.0,0.29449813]
[1758552237225,1.47625813,113040.0,113030.0,0.38289653]
[1758552237418,1.47625813,113040.0,113030.0,0.29449813]
[1758552237621,1.47625813,113040.0,113030.0,0.38289653]
[1758552238629,1.72805813,113040.0,113030.0,0.38289653]
[1758552238925,1.75424218,113040.0,113030.0,0.0144]
[1758552239225,2.00424218,113040.0,113030.0,0.014]
[1758552239426,2.00424218,113040.0,113030.0,0.0144]
[1758552239427,2.027902,113040.0,113030.0,0.0144]
[1758552239623,3.891222,113040.0,113030.0,0.0144]
[1758552239822,3.891222,113040.0,113030.0,0.014]
[1758552240024,3.891222,113040.0,113030.0,0.0144]
[1758552240823,0.03441,113030.0,113020.0,0.0001]
[1758552241023,0.03441,113020.0,113010.0,0.0009]
[1758552241324,0.03441,113010.0,113000.0,0.38817834]
[1758552241524,1.21877,113010.0,113000.0,0.56807834]
[1758552241725,1.47687813,113010.0,113000.0,0.45945813]
[1758552241920,1.47687813,113010.0,113000.0,0.45985813]
[1758552242116,1.56529223,113010.0,113000.0,0.45985813]
[1758552242329,1.56529223,113010.0,113000.0,0.45945813]
[1758552242627,1.56529223,113010.0,113000.0,0.45985813]
[1758552243025,1.57529223,113010.0,113000.0,0.45985813]
[1758552243530,1.57829223,113010.0,113000.0,0.45985813]
[1758552243721,1.57721223,113010.0,113000.0,0.45985813]
[1758552243921,1.58021223,113010.0,113000.0,0.45985813]
[1758552244521,0.50797991,113010.0,113000.0,0.45985813]
[1758552244726,1.58956804,113010.0,113000.0,0.45985813]
[1758552244917,1.58952804,113010.0,113000.0,0.45985813]
[1758552245721,1.65905924,113010.0,113000.0,0.45985813]
[1758552246222,1.65901924,113010.0,113000.0,0.45985813]
[1758552246721,1.67677045,113010.0,113000.0,0.20175]
[1758552246924,1.92677045,113010.0,113000.0,0.0004]
[1758552247322,1.92677045,113010.0,112990.0,0.25820813]
[1758552247323,0.03441,113000.0,112990.0,0.25820813]
[1758552247522,0.65331813,113000.0,112990.0,0.29945813]
[1758552247922,1.56506003,113000.0,112990.0,0.29945813]
[1758552248128,1.3069519,113000.0,112990.0,0.38788783]
[1758552248425,1.3069519,113000.0,112990.0,0.36828783]
[1758552248636,1.3089519,113000.0,112990.0,0.36828783]
[1758552248825,1.3089519,113000.0,112990.0,0.27985813]
[1758552249031,1.3179519,113000.0,112990.0,0.36828793]
[1758552250124,1.3179519,113000.0,112990.0,0.27985813]
[1758552250428,0.75274003,113000.0,112990.0,0.27985813]
[1758552250629,1.57602003,113000.0,112990.0,0.27985813]
[1758552250830,0.75274003,113000.0,112990.0,0.27985813]
[1758552251222,1.57594003,113000.0,112990.0,0.27985813]
[1758552252026,1.57594003,113000.0,112990.0,0.36828783]
[1758552252325,0.4946319,113000.0,112990.0,0.36828783]
[1758552252527,1.57598003,113000.0,112990.0,0.36828783]
[1758552253129,0.75274003,113000.0,112990.0,0.36828783]
[1758552253724,1.57586003,113000.0,112990.0,0.36828783]
[1758552254434,0.4946319,113000.0,112990.0,0.38094783]
[1758552254730,0.85518,113000.0,112990.0,0.88905596]
[1758552255132,0.0321,113000.0,112990.0,0.88905596]
[1758552255336,0.011,113000.0,112990.0,1.59985596]
[1758552255730,0.6608,113000.0,112990.0,1.59985596]
[1758552256334,0.6608,113000.0,112990.0,1.60898819]
[1758552256335,0.011,113000.0,112990.0,1.60898819]
[1758552256528,0.83304,113000.0,112990.0,1.60898819]
[1758552256835,0.82904,113000.0,112990.0,1.60898819]
[1758552258333,0.006,113000.0,112990.0,1.60898819]
[1758552259435,0.005,113000.0,112990.0,1.60998819]
[1758552259933,0.82284,113010.0,113000.0,0.1232119]
[1758552260135,0.82284,113010.0,113000.0,1.35022816]
[1758552260633,0.82284,113010.0,113000.0,1.00022816]
[1758552261224,0.82284,113010.0,113000.0,1.25833629]
[1758552261420,0.82284,113010.0,113000.0,1.57833629]
[1758552261637,0.005,113010.0,113000.0,1.82833629]
[1758552261823,0.82772,113010.0,113000.0,1.82833629]
[1758552262534,0.82872,113010.0,113000.0,1.82833629]
[1758552263234,0.82872,113010.0,113000.0,1.57022816]
[1758552264635,0.82872,113010.0,113000.0,1.74256546]
[1758552265532,0.82872,113010.0,113000.0,1.76282289]
[1758552267835,0.82872,113010.0,113000.0,1.74256546]
[1758552268037,0.82872,113010.0,113000.0,1.76350478]
[1758552271239,0.82872,113010.0,113000.0,1.51350478]
[1758552274338,0.006,113010.0,113000.0,1.59301267]
[1758552274538,0.04353294,113050.0,113040.0,0.1014106]
[1758552274740,0.8797963,113050.0,113040.0,0.46753738]
[1758552275043,0.8801963,113050.0,113040.0,0.46753738]
[1758552275243,0.85653,113050.0,113040.0,0.46753738]
[1758552275646,0.02141,113050.0,113040.0,0.81181416]
[1758552275942,0.86337,113050.0,113040.0,0.81281416]
[1758552276141,0.86337,113050.0,113040.0,0.46853738]
[1758552276337,0.86337,113050.0,113040.0,0.1242606]
[1758552276536,0.86337,113050.0,113040.0,0.46853738]
[1758552276936,0.87227521,113050.0,113040.0,0.46853738]
[1758552277137,0.87827521,113050.0,113040.0,0.46853738]
[1758552277537,0.87827521,113050.0,113040.0,0.82933738]
[1758552277842,0.87827521,113050.0,113040.0,0.46853738]
[1758552278942,0.87827521,113050.0,113040.0,0.82933738]
[1758552280136,0.04741,113050.0,113040.0,1.17361416]
[1758552280442,0.5882,113050.0,113040.0,1.48361416]
[1758552283644,0.86889,113050.0,113040.0,1.48361416]
[1758552283945,0.86889,113050.0,113040.0,1.13933738]
[1758552284444,0.86885,113050.0,113040.0,1.13933738]
[1758552284745,0.84744,113050.0,113040.0,1.48361416]
[1758552284945,0.84784,113050.0,113040.0,1.48361416]
[1758552285142,0.0264,113050.0,113040.0,1.73361416]
[1758552285639,0.0264,113050.0,113040.0,2.55501416]
[1758552285844,0.0264,113050.0,113040.0,2.63448205]
[1758552286147,0.026,113050.0,113040.0,2.63448205]
[1758552286447,0.0264,113050.0,113040.0,1.81312205]
[1758552286642,0.026,113050.0,113040.0,1.81312205]
[1758552286946,0.0094,113050.0,113040.0,2.55389416]
[1758552287743,0.0034,113050.0,113040.0,2.55389416]
[1758552287946,0.0034,113050.0,113040.0,1.73261416]
[1758552288540,0.0004,113050.0,113040.0,1.48361416]
[1758552288938,0.0004,113050.0,113040.0,0.4850606]
[1758552289138,0.03502,113050.0,113040.0,0.82933738]
[1758552289344,0.85618,113050.0,113040.0,0.82973738]
[1758552290442,0.85818,113050.0,113040.0,0.82873738]
[1758552290644,0.02341,113050.0,113040.0,0.82873738]
[1758552290844,0.0024,113050.0,113040.0,1.50301416]
[1758552291245,0.002,113050.0,113040.0,1.50301416]
[1758552291453,0.0024,113050.0,113040.0,1.50301416]
[1758552291651,0.0094,113050.0,113040.0,1.50301416]
[1758552292141,0.0024,113050.0,113040.0,1.50301416]
[1758552292347,0.0024,113050.0,113040.0,1.17924475]
[1758552292548,0.0024,113050.0,113040.0,1.17964475]
[1758552292745,0.0024,113050.0,113040.0,1.17924475]
[1758552292947,0.0004,113050.0,113040.0,1.18064475]
[1758552293663,0.0004,113050.0,113040.0,1.52492153]
[1758552293848,0.0005,113050.0,113040.0,1.52492153]
[1758552294441,0.0005,113050.0,113040.0,1.52392153]
[1758552295849,0.0035,113050.0,113040.0,1.52389808]
[1758552297643,0.0035,113050.0,113040.0,1.1796213]
[1758552297960,0.02509,113050.0,113040.0,0.88954974]
[1758552298442,0.02509,113050.0,113040.0,1.04954974]
[1758552299755,0.0035,113050.0,113040.0,1.39382652]
[1758552300351,0.0031,113050.0,113040.0,1.64382652]
[1758552300658,0.0035,113050.0,113040.0,1.64382652]
[1758552300959,0.0031,113050.0,113040.0,1.64382652]
[1758552301156,0.0035,113050.0,113040.0,1.64382652]
[1758552301555,0.0035,113050.0,113040.0,2.4637711]
[1758552302558,0.0035,113050.0,113040.0,1.6442511]
[1758552302952,0.0005,113050.0,113040.0,1.6442511]
[1758552304157,0.0005,113050.0,113040.0,2.4647311]
[1758552306165,0.0005,113050.0,113040.0,1.6442511]
[1758552306363,0.0005,113050.0,113040.0,2.4646111]
[1758552306763,0.0005,113050.0,113040.0,2.4645711]
[1758552306964,0.0005,113050.0,113040.0,1.6442511]
[1758552307159,0.0005,113050.0,113040.0,2.4645311]
[1758552307356,0.0005,113050.0,113040.0,1.6442511]
[1758552307556,0.0005,113050.0,113040.0,2.4645311]
[1758552309567,0.0005,113050.0,113040.0,2.4644511]
[1758552310455,0.0005,113050.0,113040.0,2.4644111]
[1758552310656,0.0005,113050.0,113040.0,1.6442511]
[1758552312262,0.0005,113050.0,113040.0,2.4643311]
[1758552312562,0.0005,113050.0,113040.0,1.6442511]
[1758552313059,0.0005,113050.0,113040.0,2.4642911]
[1758552313260,0.0005,113050.0,113040.0,1.6442511]
[1758552313466,0.0005,113050.0,113040.0,2.4642911]
[1758552313667,0.26404,113050.0,113040.0,1.04997432]
[1758552313868,0.26404,113050.0,113040.0,1.04957432]
[1758552314261,1.10554,113050.0,113040.0,0.33147754]
[1758552314565,1.46634,113050.0,113040.0,0.67615432]
[1758552315063,1.46634,113050.0,113040.0,0.58776372]
[1758552315669,1.46934,113050.0,113040.0,0.67615402]
[1758552315859,1.46934,113050.0,113040.0,0.22063694]
[1758552316171,1.46934,113050.0,113040.0,0.02063694]
[1758552316462,1.47334,113050.0,113040.0,0.02023694]
[1758552316765,1.47534,113050.0,113040.0,0.02063694]
[1758552317367,1.81961678,113050.0,113040.0,0.02023694]
[1758552317572,0.01354,113040.0,113030.0,0.43276968]
[1758552317866,0.39594,113040.0,113030.0,0.55414968]
[1758552318263,0.39594,113040.0,113030.0,0.55454968]
[1758552318567,1.21582,113040.0,113030.0,0.55454968]
[1758552319066,1.21882,113040.0,113030.0,0.56832968]
[1758552319467,0.85802,113040.0,113030.0,0.56832968]
[1758552320360,0.85802,113040.0,113030.0,0.2102729]
[1758552320566,0.85802,113040.0,113030.0,0.55454968]
[1758552320762,0.10922246,113040.0,113030.0,0.55454968]
[1758552321066,0.92906246,113040.0,113030.0,0.55454968]
[1758552321371,0.10922246,113040.0,113030.0,0.55454968]
[1758552321577,0.92906246,113040.0,113030.0,0.55454968]
[1758552322669,0.92906246,113040.0,113030.0,0.56832968]
[1758552323470,0.92906246,113040.0,113030.0,0.55454968]
[1758552323685,0.10922246,113040.0,113030.0,0.55454968]
[1758552323878,0.92898246,113040.0,113030.0,0.56832968]
[1758552324071,0.91544246,113040.0,113030.0,0.92912968]
[1758552324573,0.84436,113040.0,113030.0,1.09912968]
[1758552326572,0.84436,113040.0,113030.0,1.2710335]
[1758552326867,0.0031,113040.0,113030.0,1.2710335]
[1758552327069,0.0031,113040.0,113030.0,1.7791238]
[1758552328274,0.0031,113040.0,113030.0,2.5998038]
[1758552328480,0.0031,113040.0,113030.0,1.7801238]
[1758552328675,0.0031,113040.0,113030.0,1.5220335]
[1758552328875,0.0001,113040.0,113030.0,1.5220335]
[1758552329071,0.0001,113040.0,113030.0,1.2720335]
[1758552330777,0.0001,113040.0,113030.0,1.5301238]
[1758552330978,0.0001,113040.0,113030.0,1.60963169]
[1758552331187,0.39433,113060.0,113050.0,0.1240023]
[1758552331476,0.29433,113060.0,113050.0,1.0009829]
[1758552332378,0.29633,113060.0,113050.0,1.0009829]
[1758552332879,0.0024,113060.0,113050.0,1.0009829]
[1758552333080,0.009,113060.0,113050.0,1.3409829]
[1758552333276,0.0094,113060.0,113050.0,1.3409829]
[1758552333971,0.0094,113060.0,113050.0,1.34988946]
[1758552334178,0.0094,113060.0,113050.0,1.3409829]
[1758552334679,0.0074,113060.0,113050.0,1.3409829]
[1758552335374,0.0004,113060.0,113050.0,1.3409829]
[1758552335574,0.0034,113060.0,113050.0,1.3409829]
[1758552335880,0.003,113060.0,113050.0,1.3409829]
[1758552336080,0.0034,113060.0,113050.0,1.3409829]
[1758552336273,0.02519,113060.0,113050.0,1.0309829]
[1758552337480,0.02519,113060.0,113050.0,0.5148023]
[1758552337683,0.02519,113060.0,113050.0,1.0309829]
[1758552338184,0.02519,113060.0,113050.0,1.0009829]
[1758552338382,0.38599,113060.0,113050.0,0.3820926]
[1758552338582,0.27519,113060.0,113050.0,0.3820926]
[1758552338882,0.27519,113060.0,113050.0,0.6401829]
[1758552339079,0.63599,113060.0,113050.0,0.3820926]
[1758552339281,0.38599,113060.0,113050.0,0.3824926]
[1758552339683,0.39466,113060.0,113050.0,0.3820926]
[1758552339886,0.39466,113060.0,113050.0,0.3824926]
[1758552340186,0.38599,113060.0,113050.0,0.3824926]
[1758552341084,0.84435,113060.0,113050.0,0.3824926]
[1758552341686,1.46382,113060.0,113050.0,0.3691026]
[1758552341886,0.64466,113060.0,113050.0,0.3687026]
[1758552342184,1.46378,113060.0,113050.0,0.3824926]
[1758552342981,1.46378,113060.0,113050.0,0.2807203]
[1758552343288,1.7218703,113060.0,113050.0,0.2580903]
[1758552343586,1.1608406,113060.0,113050.0,0.0004]
[1758552343787,1.9799206,113060.0,113050.0,0.0004]
[1758552343982,1.1608406,113060.0,113050.0,0.0004]
[1758552344179,0.01359,113050.0,113040.0,0.3465773]
[1758552344382,1.21522,113050.0,113040.0,0.3687073]
[1758552344687,0.39618,113050.0,113040.0,0.3687073]
[1758552344887,1.21522,113050.0,113040.0,0.3687073]
[1758552345188,1.21522,113050.0,113040.0,0.6267976]
[1758552345388,1.21522,113050.0,113040.0,0.6277976]
[1758552346387,1.49146176,113050.0,113040.0,0.3474804]
[1758552346788,1.49142176,113050.0,113040.0,0.3474804]
[1758552347086,1.50042176,113050.0,113040.0,0.3464804]
[1758552347388,1.50042176,113050.0,113040.0,0.3468804]
[1758552347584,1.50042176,113050.0,113040.0,0.2584903]
[1758552347891,1.75042176,113050.0,113040.0,0.0004]
[1758552348284,1.75042176,113050.0,113030.0,0.346585]
[1758552348484,0.2934203,113040.0,113030.0,0.658815]
[1758552348786,0.03533,113040.0,113030.0,0.658715]
[1758552350091,0.03833,113040.0,113030.0,0.658715]
[1758552350293,0.03843,113040.0,113030.0,0.658715]
[1758552350488,0.2965203,113040.0,113030.0,0.636485]
[1758552350691,0.03843,113040.0,113030.0,0.658715]
[1758552350894,0.85735,113040.0,113030.0,0.658715]
[1758552351788,0.03843,113040.0,113030.0,0.658715]
[1758552351988,0.85731,113040.0,113030.0,0.658715]
[1758552353397,0.03843,113040.0,113030.0,0.658715]
[1758552353599,0.85731,113040.0,113030.0,0.658715]
[1758552354393,0.85731,113040.0,113030.0,0.29]
[1758552354598,1.4762003,113040.0,113030.0,0.2580903]
[1758552354799,1.4762003,113040.0,113030.0,0.2780903]
[1758552354987,0.6573203,113040.0,113030.0,0.3664882]
[1758552355191,1.4761603,113040.0,113030.0,0.3668882]
[1758552355398,1.4761603,113040.0,113030.0,0.3896982]
[1758552356300,1.21803,113040.0,113030.0,0.3896982]
[1758552356501,1.21803,113040.0,113030.0,0.3696982]
[1758552356702,1.4761203,113040.0,113030.0,0.3696982]
[1758552357100,0.6573203,113040.0,113030.0,0.3696982]
[1758552357303,1.21803,113040.0,113030.0,0.3696982]
[1758552357493,1.80487588,113040.0,113030.0,0.0004]
[1758552357795,1.53869528,113040.0,113030.0,0.2580903]
[1758552357996,0.97798558,113040.0,113030.0,0.2584903]
[1758552358199,1.79674558,113040.0,113030.0,0.3696982]
[1758552359100,0.97798558,113040.0,113030.0,0.3696982]
[1758552359302,1.79670558,113040.0,113030.0,0.3696982]
[1758552359702,1.53861528,113040.0,113030.0,0.3696982]
[1758552360094,0.71989528,113040.0,113030.0,0.3696982]
[1758552360294,1.79674558,113040.0,113030.0,0.3696982]
[1758552360509,0.71989528,113040.0,113030.0,0.3696982]
[1758552360696,1.27507528,113040.0,113030.0,0.6411285]
[1758552361001,1.27507528,113040.0,113030.0,0.3830382]
[1758552361203,0.91427528,113040.0,113030.0,0.3830382]
[1758552361702,0.91423528,113040.0,113030.0,0.3830382]
[1758552362600,0.91423528,113040.0,113030.0,0.6411285]
[1758552364102,0.02489,113040.0,113030.0,1.2519285]
[1758552364401,0.8435,113040.0,113030.0,0.7357479]
[1758552364706,0.85627,113040.0,113030.0,0.6554403]
[1758552364906,0.85627,113040.0,113030.0,0.2946403]
[1758552365302,1.4751603,113040.0,113030.0,0.2946403]
[1758552365605,1.21707,113040.0,113030.0,0.2942403]
[1758552365795,1.21707,113040.0,113030.0,0.2946403]
[1758552366200,1.28643426,113040.0,113030.0,0.2946403]
[1758552366396,1.28643426,113040.0,113030.0,0.2813003]
[1758552370714,0.46779426,113040.0,113030.0,0.2813003]
[1758552370915,1.28627426,113040.0,113030.0,0.2813003]
[1758552372815,1.28627426,113040.0,113030.0,0.02321]
[1758552373005,1.54436456,113040.0,113030.0,0.2584903]
[1758552373311,1.79436456,113040.0,113030.0,0.2584903]
[1758552373511,1.79436456,113040.0,113030.0,0.0004]
[1758552373715,1.79436456,113040.0,113020.0,0.2811003]
[1758552373716,0.03453,113030.0,113020.0,0.2811003]
[1758552373910,0.39543,113030.0,113020.0,0.7189906]
[1758552374307,0.39543,113030.0,113020.0,0.7193906]
[1758552374911,0.39543,113030.0,113020.0,0.4613003]
[1758552374912,0.40432623,113030.0,113020.0,0.4613003]
[1758552375412,0.40432623,113030.0,113020.0,0.7193906]
[1758552375715,1.22264623,113030.0,113020.0,0.8077964]
[1758552376112,1.22264623,113030.0,113020.0,0.8214264]
[1758552376409,1.22264623,113030.0,113020.0,0.2916158]
[1758552376617,1.20983623,113030.0,113020.0,0.8214264]
[1758552376918,1.20983623,113030.0,113020.0,0.8224264]
[1758552377213,1.22343623,113030.0,113020.0,0.8224264]
[1758552378410,1.20983623,113030.0,113020.0,0.8224264]
[1758552380115,1.20979623,113030.0,113020.0,0.8224264]
[1758552380303,0.39155623,113030.0,113020.0,0.8224264]
[1758552380509,1.20975623,113030.0,113020.0,1.0805167]
[1758552380815,0.84006,113030.0,113020.0,1.4332264]
[1758552381713,0.84917746,113030.0,113020.0,1.4332264]
[1758552381914,0.84006,113030.0,113020.0,1.77082459]
[1758552382115,0.84006,113030.0,113020.0,0.99655369]
[1758552382415,0.84006,113030.0,113020.0,1.51273429]
[1758552383116,0.84006,113030.0,113020.0,0.99655369]
[1758552383310,0.84006,113030.0,113020.0,1.51273429]
[1758552384215,0.84898487,113030.0,113020.0,1.51273429]
[1758552385812,0.84898487,113030.0,113020.0,0.99655369]
[1758552386010,0.84898487,113030.0,113020.0,1.42432849]
[1758552386712,0.84898487,113030.0,113020.0,1.3448206]
[1758552387412,0.86169487,113030.0,113020.0,1.0944206]
[1758552387617,0.86169487,113030.0,113020.0,1.0948206]
[1758552388513,0.86169487,113030.0,113020.0,0.92289519]
[1758552389017,1.22249487,113030.0,113020.0,0.20421]
[1758552389217,1.22249487,113030.0,113020.0,0.54806519]
[1758552389419,1.22249487,113030.0,113020.0,0.54846519]
[1758552393822,1.22249487,113030.0,113020.0,0.20421]
[1758552394022,1.22249487,113030.0,113020.0,0.54846519]
[1758552394224,1.22249487,113030.0,113020.0,0.001]
[1758552394225,1.81675006,113030.0,113020.0,0.001]
[1758552394718,1.8400605,113030.0,113020.0,0.0014]
[1758552395423,1.8400605,113030.0,113020.0,0.001]
[1758552395621,1.8400605,113030.0,113020.0,0.0014]
[1758552395822,1.8400605,113030.0,113020.0,0.001]
[1758552396010,1.8400605,113030.0,113020.0,0.0014]
[1758552396214,0.76600331,113030.0,113020.0,0.00144]
[1758552396414,1.1102585,113030.0,113020.0,0.00144]
[1758552396620,1.31053287,113030.0,113020.0,0.36784519]
[1758552397014,0.49269287,113030.0,113020.0,0.36784519]
[1758552397216,1.92805711,113030.0,113020.0,0.00144]
[1758552398316,1.11025711,113030.0,113020.0,0.00144]
[1758552398621,1.92805711,113030.0,113020.0,0.00144]
[1758552399522,1.67805711,113030.0,113020.0,0.00144]
[1758552401221,1.92805711,113030.0,113020.0,0.00104]
[1758552401421,1.92805711,113030.0,113020.0,0.00144]
[1758552405923,1.67805711,113030.0,113020.0,0.00144]
[1758552406129,1.92805711,113030.0,113020.0,0.00144]
[1758552406326,1.92805711,113030.0,113020.0,0.00104]
[1758552406625,1.92805711,113030.0,113020.0,0.00144]
[1758552407526,3.79169711,113030.0,113020.0,0.00144]
[1758552408529,1.11025711,113030.0,113020.0,0.00144]
[1758552408738,1.92797711,113030.0,113020.0,0.00144]
[1758552408933,0.51600192,113030.0,113020.0,0.36784519]
[1758552409138,1.31037287,113030.0,113020.0,0.36784519]
[1758552409332,0.49269287,113030.0,113020.0,0.70625099]
[1758552409540,1.31037287,113030.0,113020.0,0.71972099]
[1758552409736,0.47998287,113030.0,113020.0,0.71972099]
[1758552410033,1.29766287,113030.0,113020.0,0.71972099]
[1758552411340,1.31037287,113030.0,113020.0,0.00144]
[1758552414737,1.31037287,113030.0,113020.0,0.00104]
[1758552414937,1.31037287,113030.0,113020.0,0.00144]
[1758552416240,1.65462806,113030.0,113020.0,0.00144]
[1758552416934,0.83694806,113030.0,113020.0,0.00144]
[1758552417134,0.49269287,113030.0,113020.0,0.1126058]
[1758552417439,1.31017287,113030.0,113020.0,0.00144]
[1758552417941,1.31017287,113030.0,113020.0,0.0242]
[1758552418133,1.31017287,113030.0,113020.0,0.00144]
[1758552418334,1.31017287,113030.0,113020.0,0.0242]
[1758552418842,1.31017287,113030.0,113020.0,0.00144]
[1758552419538,1.31017287,113030.0,113020.0,0.0242]
[1758552419939,1.31017287,113030.0,113020.0,0.00144]
[1758552420635,1.65442806,113030.0,113020.0,0.00144]
[1758552420933,1.65442806,113030.0,112990.0,0.02276]
[1758552420934,0.03514,113000.0,112990.0,0.02276]
[1758552421137,1.21338,113000.0,112990.0,0.34276]
[1758552421531,1.21338,113000.0,112990.0,0.34316]
[1758552421735,1.2825071,113000.0,112990.0,0.4315892]
[1758552422338,1.2825071,113000.0,112990.0,0.34316]
[1758552422539,1.2825071,113000.0,112990.0,0.4425892]
[1758552422741,0.4650671,113000.0,112990.0,0.78644439]
[1758552422932,0.4650671,113000.0,112990.0,0.79952439]
[1758552423134,0.4522971,113000.0,112990.0,0.60952439]
[1758552423340,1.2696971,113000.0,112990.0,0.60952439]
[1758552423538,1.2696971,113000.0,112990.0,0.61452439]
[1758552423739,1.3581185,113000.0,112990.0,0.61452439]
[1758552425236,1.3581185,113000.0,112990.0,0.52609519]
[1758552425438,1.3581185,113000.0,112990.0,0.18184]
[1758552425741,1.3581185,113000.0,112990.0,0.52609519]
[1758552425938,1.73313689,113000.0,112990.0,0.1464]
[1758552426146,1.73313689,113000.0,112990.0,0.0164]
[1758552427844,1.98313689,113000.0,112990.0,0.016]
[1758552428346,1.98313689,113000.0,112990.0,0.0164]
[1758552428642,3.84701689,113000.0,112990.0,0.0164]
[1758552428833,3.87059327,113000.0,112990.0,0.0164]
[1758552429231,3.52633808,113000.0,112990.0,0.0164]
[1758552429438,1.66245808,113000.0,112990.0,0.0164]
[1758552429643,2.00671327,113000.0,112990.0,0.0164]
[1758552429939,2.00771327,113000.0,112990.0,0.0114]
[1758552430245,2.00771327,113000.0,112990.0,0.0004]
[1758552430246,2.01071327,113000.0,112990.0,0.0004]
[1758552430540,1.99272007,113000.0,112990.0,0.0004]
[1758552431632,1.64846488,113000.0,112990.0,0.0004]
[1758552431833,1.99272007,113000.0,112990.0,0.0004]
[1758552432233,1.74272007,113000.0,112990.0,0.0004]
[1758552435638,2.08697526,113000.0,112990.0,0.0004]
[1758552435940,0.1213671,112980.0,112970.0,0.02391]
[1758552436136,1.2996071,112980.0,112970.0,0.23381]
[1758552436334,1.64386229,112980.0,112970.0,0.21084]
[1758552436647,1.64386229,112980.0,112970.0,0.00084]
[1758552436841,1.2996071,112980.0,112970.0,4e-05]
[1758552437047,1.64386229,112980.0,112970.0,0.00044]
[1758552437345,1.64386229,112980.0,112970.0,0.00204]
[1758552437546,1.64386229,112980.0,112970.0,0.02541]
[1758552438045,1.2996071,112980.0,112970.0,0.02941]
[1758552438243,1.64386229,112980.0,112970.0,0.02941]
[1758552439144,1.64386229,112980.0,112970.0,0.00244]
[1758552439350,1.65086229,112980.0,112970.0,0.02341]
[1758552439551,1.3065671,112980.0,112970.0,0.1118549]
[1758552439945,0.49819205,112980.0,112970.0,0.1118549]
[1758552440244,1.31559205,112980.0,112970.0,0.1246249]
[1758552441053,0.49819205,112980.0,112970.0,0.1118549]
[1758552441257,1.31559205,112980.0,112970.0,0.1118549]
[1758552441450,1.30438205,112980.0,112970.0,0.71888009]
[1758552441640,0.94358205,112980.0,112970.0,0.71888009]
[1758552442439,0.94358205,112980.0,112970.0,0.3746249]
[1758552442646,0.94358205,112980.0,112970.0,0.71888009]
[1758552444054,0.94358205,112980.0,112970.0,0.3746249]
[1758552444253,0.95479205,112980.0,112970.0,0.63043519]
[1758552444455,0.95479205,112980.0,112970.0,0.27341]
[1758552446351,1.65984724,112980.0,112970.0,0.00044]